bitfinex/quotes_SOLUSD_20251019
["timestamp","ask_amount","ask_price","bid_price","bid_amount"]
[1760863138616,0.5388802,184.81,184.77,0.87]
[1760863138814,3.32887142,184.79,184.77,0.87]
[1760863139426,3.32887142,184.79,184.77,0.2]
[1760863139627,3.32887142,184.79,184.77,6.28212235]
[1760863140648,3.32887142,184.78,184.77,0.2]
[1760863141727,4.02887142,184.78,184.77,0.2]
[1760863144027,18.23421805,184.78,184.77,0.2]
[1760863144225,21.82216302,184.78,184.77,0.2]
[1760863145637,27.23400412,184.78,184.7,0.2]
[1760863145831,3.32887142,184.71,184.7,0.2]
[1760863146031,3.86775162,184.71,184.7,0.2]
[1760863146238,4.02887142,184.71,184.7,0.2]
[1760863147335,4.56775162,184.71,184.7,0.2]
[1760863147825,0.5388802,184.74,184.7,0.2]
[1760863148042,3.32887142,184.71,184.7,0.2]
[1760863148827,4.02887142,184.71,184.7,0.2]
[1760863149540,14.90534663,184.71,184.7,0.2]
[1760863150143,15.44422683,184.71,184.7,0.2]
[1760863151052,18.77309825,184.71,184.7,0.2]
[1760863151257,27.7528965,184.71,184.7,0.2]
[1760863151442,19.01013304,184.71,184.7,0.2]
[1760863151761,15.44422683,184.71,184.7,0.2]
[1760863151968,15.44422683,184.71,184.68,0.2]
[1760863151969,10.87647521,184.69,184.68,0.2]
[1760863152253,10.87647521,184.69,184.66,0.2]
[1760863152254,14.20534663,184.67,184.66,0.2]
[1760863152457,14.74422683,184.67,184.66,0.2]
[1760863152754,15.43422683,184.67,184.66,0.2]
[1760863153341,14.74422683,184.67,184.66,0.2]
[1760863153540,15.43422683,184.67,184.66,0.2]
[1760863154635,10.87647521,184.66,184.62,0.2]
[1760863154836,3.32887142,184.63,184.62,0.2]
[1760863155343,14.20534663,184.63,184.62,0.2]
[1760863156959,14.92534663,184.63,184.62,0.2]
[1760863157344,15.46422683,184.63,184.62,0.2]
[1760863158256,10.87647521,184.62,184.59,13.27769899]
[1760863158437,3.32887142,184.6,184.59,13.27769899]
[1760863159260,14.20534663,184.6,184.59,13.27769899]
[1760863159637,18.79309825,184.6,184.59,13.27769899]
[1760863159849,18.79309825,184.6,184.51,0.69]
[1760863160147,3.32887142,184.52,184.51,0.69]
[1760863162263,3.32887142,184.52,184.47,0.2]
[1760863162456,10.87647521,184.55,184.47,0.2]
[1760863162457,0.5388802,184.54,184.49,0.69]
[1760863162656,3.32887142,184.5,184.47,0.2]
[1760863162962,3.32887142,184.51,184.47,5.62078321]
[1760863163290,3.32887142,184.53,184.48,0.69]
[1760863163745,3.32887142,184.51,184.48,0.69]
[1760863164568,3.32887142,184.51,184.48,6.11062424]
[1760863164772,3.32887142,184.51,184.49,0.69]
[1760863165078,3.32887142,184.5,184.49,0.69]
[1760863166058,3.32887142,184.5,184.47,0.89]
[1760863166267,3.32887142,184.48,184.47,0.2]
[1760863166755,14.92534663,184.48,184.47,0.2]
[1760863166953,14.92534663,184.48,184.38,0.69]
[1760863166954,10.87647521,184.47,184.38,0.69]
[1760863167165,3.32887142,184.39,184.38,0.69]
[1760863168383,3.32887142,184.41,184.38,6.11346591]
[1760863168589,3.32887142,184.4,184.39,0.69]
[1760863169257,3.32887142,184.41,184.39,0.69]
[1760863169558,3.32887142,184.44,184.4,0.69]
[1760863169776,3.32887142,184.45,184.4,4.01887142]
[1760863169980,3.32887142,184.45,184.41,0.69]
[1760863170291,3.32887142,184.47,184.42,8.75127679]
[1760863170463,3.32887142,184.48,184.43,0.69]
[1760863170657,0.5388802,184.5,184.43,0.69]
[1760863170857,3.32887142,184.48,184.43,4.01887142]
[1760863171057,3.32887142,184.48,184.44,0.69]
[1760863171285,3.32887142,184.48,184.45,0.69]
[1760863171687,3.32887142,184.48,184.46,0.69]
[1760863171985,3.32887142,184.5,184.46,0.69]
[1760863172183,3.32887142,184.48,184.45,0.69]
[1760863172394,3.32887142,184.46,184.45,0.69]
[1760863172900,0.72,184.51,184.45,0.69]
[1760863173075,3.32887142,184.46,184.45,0.69]
[1760863173281,1.2588802,184.5,184.42,0.69]
[1760863173476,3.32887142,184.45,184.43,5.42211137]
[1760863173685,3.32887142,184.47,184.44,0.69]
[1760863173897,0.5388802,184.5,184.44,4.01887142]
[1760863173898,3.32887142,184.49,184.44,4.01887142]
[1760863174098,3.32887142,184.49,184.45,0.69]
[1760863174298,3.32887142,184.47,184.43,5.42211137]
[1760863174598,3.32887142,184.46,184.44,0.69]
[1760863175379,3.32887142,184.46,184.43,5.42211137]
[1760863175589,3.32887142,184.45,184.43,0.69]
[1760863176983,3.32887142,184.45,184.4,5.42270128]
[1760863177187,3.32887142,184.44,184.4,6.11270128]
[1760863177378,1.2588802,184.47,184.4,6.11270128]
[1760863177585,3.32887142,184.42,184.38,23.57]
[1760863177803,3.32887142,184.4,184.38,0.69]
[1760863179114,3.32887142,184.4,184.39,0.69]
[1760863179296,3.32887142,184.4,184.37,5.42366112]
[1760863179496,3.32887142,184.4,184.38,0.69]
[1760863179699,0.5388802,184.45,184.39,0.69]
[1760863179885,3.32887142,184.47,184.41,3.32887142]
[1760863180091,3.32887142,184.46,184.42,0.69]
[1760863180387,3.32887142,184.45,184.43,0.69]
[1760863180710,3.32887142,184.44,184.41,5.42268623]
[1760863180898,3.32887142,184.45,184.41,0.69]
[1760863181103,10.87647521,184.48,184.39,5.42319238]
[1760863181104,3.32887142,184.43,184.39,5.42319238]
[1760863181416,3.32887142,184.41,184.39,0.69]
[1760863181916,3.32887142,184.42,184.39,0.69]
[1760863182789,3.32887142,184.45,184.4,4.01887142]
[1760863183089,3.32887142,184.48,184.42,3.32887142]
[1760863183402,0.5388802,184.53,184.44,3.32887142]
[1760863183622,3.32887142,184.52,184.45,1.23215234]
[1760863183787,3.32887142,184.52,184.47,3.32887142]
[1760863183986,3.32887142,184.5,184.47,0.69]
[1760863184395,3.32887142,184.5,184.48,0.69]
[1760863184595,3.32887142,184.51,184.48,0.69]
[1760863185488,3.32887142,184.52,184.49,0.69]
[1760863185700,3.32887142,184.51,184.47,6.11076893]
[1760863185902,3.32887142,184.51,184.46,3.32887142]
[1760863186108,3.32887142,184.49,184.46,0.69]
[1760863186308,3.32887142,184.48,184.44,5.42177581]
[1760863186518,3.32887142,184.48,184.44,6.11177581]
[1760863186689,3.32887142,184.47,184.44,0.69]
[1760863187116,3.32887142,184.47,184.45,0.69]
[1760863187319,3.32887142,184.48,184.45,0.69]
[1760863187894,3.32887142,184.49,184.46,0.69]
[1760863189195,3.32887142,184.48,184.44,0.69]
[1760863189411,3.32887142,184.48,184.45,0.69]
[1760863189586,3.32887142,184.47,184.43,6.1120603]
[1760863189787,3.32887142,184.47,184.41,0.54226994]
[1760863189993,3.32887142,184.42,184.37,0.69]
[1760863190192,3.32887142,184.4,184.38,0.69]
[1760863190493,3.32887142,184.4,184.36,5.4241701]
[1760863190494,3.32887142,184.42,184.39,0.69]
[1760863190704,3.32887142,184.42,184.37,3.32887142]
[1760863190705,3.32887142,184.42,184.4,0.69]
[1760863191029,4.40080005,184.6,184.41,30.08001278]
[1760863191228,3.32887142,184.61,184.55,3.32887142]
[1760863191432,0.71,184.62,184.59,3.32887142]
[1760863192020,0.71,184.61,184.55,1.23185857]
[1760863192303,0.71,184.61,184.57,3.32887142]
[1760863196196,3.32887142,184.62,184.55,6.10858214]
[1760863196400,3.32887142,184.62,184.55,0.69]
[1760863197334,3.32887142,184.62,184.55,6.10854475]
[1760863197540,0.71,184.63,184.55,6.10854475]
[1760863197720,3.32887142,184.62,184.55,6.10854475]
[1760863198043,102.1,184.62,184.56,0.69]
[1760863198334,102.1,184.62,184.56,4.01887142]
[1760863198539,102.1,184.62,184.57,3.32887142]
[1760863198724,0.71,184.61,184.56,0.69]
[1760863198925,102.1,184.62,184.57,0.69]
[1760863199127,102.81,184.62,184.57,0.69]
[1760863199327,106.13887142,184.62,184.57,0.69]
[1760863199734,106.13887142,184.62,184.55,6.10854475]
[1760863200116,3.32887142,184.6,184.55,0.69]
[1760863200324,3.32887142,184.58,184.51,5.4197264]
[1760863200520,3.32887142,184.57,184.51,5.4197264]
[1760863201052,3.32887142,184.59,184.52,4.01887142]
[1760863201217,102.1,184.61,184.55,3.32887142]
[1760863201418,102.1,184.61,184.55,4.01887142]
[1760863202118,102.1,184.61,184.53,6.10911987]
[1760863202119,0.71,184.6,184.53,6.10911987]
[1760863202420,3.32887142,184.59,184.53,9.43799129]
[1760863202843,3.32887142,184.59,184.53,6.10911987]
[1760863203024,4.03887142,184.58,184.53,5.41911987]
[1760863203225,4.03887142,184.58,184.53,6.10911987]
[1760863204037,3.32887142,184.58,184.53,6.10911987]
[1760863204723,0.71,184.6,184.53,5.41911987]
[1760863204940,3.32887142,184.58,184.53,5.41911987]
[1760863205142,3.32887142,184.58,184.53,6.10911987]
[1760863205545,3.32887142,184.58,184.53,5.41911987]
[1760863205753,3.32887142,184.58,184.54,0.69]
[1760863206423,3.32887142,184.57,184.54,0.69]
[1760863207417,3.32887142,184.57,184.54,6.10887089]
[1760863207620,0.71,184.6,184.54,6.10887089]
[1760863207621,3.32887142,184.58,184.55,0.69]
[1760863207938,3.32887142,184.6,184.56,0.69]
[1760863208237,3.32887142,184.6,184.57,0.69]
[1760863208446,3.32887142,184.61,184.57,0.69]
[1760863208737,8.74387877,184.68,184.6,3.32887142]
[1760863208738,0.71,184.68,184.6,3.32887142]
[1760863208932,3.32887142,184.69,184.63,3.32887142]
[1760863209133,3.32887142,184.69,184.63,4.01887142]
[1760863209352,0.71,184.7,184.64,3.87046587]
[1760863209516,4.03887142,184.7,184.64,3.87046587]
[1760863209719,3.32887142,184.67,184.61,5.41682465]
[1760863210030,3.32887142,184.65,184.61,5.41682465]
[1760863210233,3.32887142,184.65,184.61,6.07682465]
[1760863210941,3.32887142,184.66,184.61,6.07682465]
[1760863211526,0.72,184.67,184.62,0.66]
[1760863211730,3.32887142,184.66,184.62,6.07640196]
[1760863211924,11.59647521,184.71,184.62,5.41640196]
[1760863212133,11.59647521,184.71,184.64,3.32887142]
[1760863212134,3.32887142,184.69,184.64,3.32887142]
[1760863212325,3.32887142,184.7,184.65,0.66]
[1760863212665,3.32887142,184.7,184.66,0.66]
[1760863213339,3.32887142,184.71,184.67,0.66]
[1760863213541,0.72,184.74,184.68,0.66]
[1760863213744,3.32887142,184.73,184.68,6.07470246]
[1760863214048,3.32887142,184.73,184.69,0.7]
[1760863214242,4.01887142,184.73,184.68,5.41470246]
[1760863214553,3.32887142,184.72,184.69,0.7]
[1760863214750,0.69,184.76,184.69,0.7]
[1760863214951,3.32887142,184.74,184.7,0.7]
[1760863215245,3.32887142,184.74,184.71,0.7]
[1760863215448,0.69,184.78,184.71,0.7]
[1760863215745,3.32887142,184.76,184.72,5.41359896]
[1760863215938,3.32887142,184.76,184.69,0.54144783]
[1760863216144,3.32887142,184.74,184.7,0.7]
[1760863216330,3.32887142,184.74,184.71,0.7]
[1760863216646,3.32887142,184.75,184.71,0.7]
[1760863216842,3.32887142,184.76,184.72,0.7]
[1760863217170,3.32887142,184.77,184.73,0.7]
[1760863217454,3.32887142,184.78,184.74,0.7]
[1760863217633,3.32887142,184.78,184.75,0.7]
[1760863218241,3.32887142,184.78,184.73,5.95437519]
[1760863218446,3.32887142,184.78,184.74,0.7]
[1760863218744,3.32887142,184.78,184.75,0.7]
[1760863218938,3.42887142,184.79,184.76,0.7]
[1760863219338,0.1,184.79,184.76,0.7]
[1760863219637,3.42887142,184.79,184.76,0.7]
[1760863220041,3.42887142,184.79,184.75,5.95387357]
[1760863220235,3.42887142,184.79,184.76,0.7]
[1760863220552,0.1,184.79,184.76,0.7]
[1760863221335,3.32887142,184.77,184.7,26.20887142]
[1760863221536,3.32887142,184.73,184.69,1.24144783]
[1760863221739,3.32887142,184.73,184.7,5.4140786]
[1760863221936,3.32887142,184.71,184.68,5.95600457]
[1760863222149,3.32887142,184.71,184.67,5.41491588]
[1760863222350,3.32887142,184.71,184.64,13.53927377]
[1760863222351,4.01887142,184.7,184.65,5.95700565]
[1760863222536,4.01887142,184.7,184.65,6.11544053]
[1760863222945,4.01887142,184.7,184.65,5.41544053]
[1760863223152,3.32887142,184.7,184.66,0.7]
[1760863223570,3.32887142,184.68,184.65,5.95700565]
[1760863223736,3.32887142,184.67,184.63,6.65758931]
[1760863223941,3.32887142,184.67,184.64,6.11566153]
[1760863224147,3.32887142,184.68,184.64,5.41566153]
[1760863224353,3.32887142,184.68,184.65,0.7]
[1760863224550,3.32887142,184.68,184.64,5.41566153]
[1760863224756,3.32887142,184.66,184.6,0.7]
[1760863224960,3.32887142,184.65,184.61,5.95850711]
[1760863225268,0.69,184.67,184.61,5.41682465]
[1760863225641,3.32887142,184.64,184.6,1.2417118]
[1760863225965,3.32887142,184.63,184.6,6.1171017]
[1760863226839,4.01887142,184.62,184.58,5.4174372]
[1760863227156,3.32887142,184.62,184.58,6.1174372]
[1760863227369,3.32887142,184.61,184.58,5.4174372]
[1760863227669,4.01887142,184.62,184.58,5.4174372]
[1760863228575,3.32887142,184.61,184.57,5.41792242]
[1760863228765,3.32887142,184.61,184.57,6.11792242]
[1760863229838,0.69,184.63,184.57,6.11792242]
[1760863230045,3.32887142,184.61,184.57,5.41792242]
[1760863230239,3.32887142,184.59,184.56,5.41828084]
[1760863230440,3.32887142,184.59,184.55,0.7]
[1760863230671,3.32887142,184.57,184.53,23.58]
[1760863230873,3.32887142,184.57,184.51,4.02887142]
[1760863230874,3.32887142,184.56,184.51,4.02887142]
[1760863231094,3.32887142,184.56,184.52,0.7]
[1760863231247,3.32887142,184.58,184.53,0.7]
[1760863231781,3.32887142,184.61,184.56,3.32887142]
[1760863232079,3.32887142,184.62,184.57,0.7]
[1760863232373,3.32887142,184.6,184.55,0.7]
[1760863232586,3.32887142,184.59,184.53,3.32887142]
[1760863232757,3.32887142,184.6,184.55,4.02887142]
[1760863232949,3.32887142,184.6,184.56,0.7]
[1760863233149,3.32887142,184.61,184.57,1.24179985]
[1760863233368,3.32887142,184.62,184.58,0.7]
[1760863233964,3.32887142,184.65,184.59,1.24174115]
[1760863234158,3.32887142,184.64,184.59,4.57061257]
[1760863234354,0.69,184.66,184.59,3.87061257]
[1760863234560,3.32887142,184.65,184.6,0.7]
[1760863234768,4.01887142,184.65,184.6,0.7]
[1760863234979,0.69,184.64,184.6,0.7]
[1760863235287,3.32887142,184.63,184.57,0.7]
[1760863235462,4.01887142,184.64,184.59,3.32887142]
[1760863235667,4.01887142,184.64,184.59,4.02887142]
[1760863235885,0.69,184.64,184.59,4.02887142]
[1760863236088,0.69,184.66,184.61,3.32887142]
[1760863236265,3.32887142,184.66,184.6,0.5417118]
[1760863236587,0.69,184.65,184.6,3.87058322]
[1760863236786,0.69,184.68,184.61,0.7]
[1760863237096,3.32887142,184.66,184.61,0.7]
[1760863237274,4.01887142,184.66,184.61,0.7]
[1760863237477,3.32887142,184.63,184.57,0.7]
[1760863237683,3.32887142,184.64,184.58,3.87064192]
[1760863238075,0.69,184.65,184.59,3.32887142]
[1760863238390,3.32887142,184.66,184.59,0.7]
[1760863238613,4.01887142,184.65,184.59,3.32887142]
[1760863238886,3.32887142,184.64,184.58,3.87064192]
[1760863239388,3.32887142,184.64,184.59,0.7]
[1760863239578,4.01887142,184.63,184.58,0.5417705]
[1760863239767,0.69,184.62,184.58,0.5417705]
[1760863239969,3.32887142,184.63,184.58,0.5417705]
[1760863240170,0.69,184.62,184.53,3.87078872]
[1760863240491,3.32887142,184.63,184.54,0.7]
[1760863240691,4.01887142,184.62,184.56,3.32887142]
[1760863240893,4.01887142,184.62,184.56,4.02887142]
[1760863241592,14.20534663,184.68,184.58,3.32887142]
[1760863241593,4.01887142,184.64,184.58,3.32887142]
[1760863241800,3.32887142,184.63,184.57,4.57067127]
[1760863242108,4.01887142,184.64,184.58,4.02887142]
[1760863242278,4.01887142,184.64,184.59,0.54174115]
[1760863242486,4.01887142,184.63,184.59,0.54174115]
[1760863242688,0.69,184.63,184.57,4.57067127]
[1760863242901,3.32887142,184.64,184.58,4.02887142]
[1760863243416,3.32887142,184.64,184.58,0.7]
[1760863243579,3.32887142,184.62,184.56,3.32887142]
[1760863243910,3.32887142,184.61,184.56,0.54182921]
[1760863244111,10.87647521,184.67,184.56,4.56070063]
[1760863244285,3.32887142,184.63,184.57,4.01887142]
[1760863244485,3.32887142,184.64,184.58,4.56064192]
[1760863244821,0.71,184.65,184.58,0.69]
[1760863244985,3.32887142,184.63,184.58,4.56064192]
[1760863245187,3.32887142,184.63,184.59,0.69]
[1760863245580,0.71,184.62,184.54,0.54188793]
[1760863245803,3.32887142,184.6,184.55,3.32887142]
[1760863246004,0.71,184.64,184.56,1.23182921]
[1760863246202,102.1,184.67,184.57,0.69]
[1760863246509,102.1,184.67,184.58,0.5417705]
[1760863246510,3.32887142,184.63,184.58,0.5417705]
[1760863246714,4.03887142,184.63,184.58,1.2317705]
[1760863246894,3.32887142,184.62,184.58,1.2317705]
[1760863247093,4.03887142,184.62,184.58,1.2317705]
[1760863247513,102.1,184.67,184.58,1.2317705]
[1760863247514,0.71,184.64,184.58,0.69]
[1760863247814,3.32887142,184.63,184.58,0.69]
[1760863247982,3.32887142,184.63,184.59,1.23174115]
[1760863248181,3.32887142,184.62,184.59,1.23174115]
[1760863248387,0.71,184.65,184.59,1.23174115]
[1760863248596,3.32887142,184.63,184.59,1.23174115]
[1760863249103,4.03887142,184.62,184.59,0.54174115]
[1760863249306,0.71,184.64,184.57,0.54179985]
[1760863249504,3.32887142,184.62,184.57,1.23179985]
[1760863249706,0.71,184.64,184.58,0.69]
[1760863249908,3.32887142,184.63,184.59,0.54174115]
[1760863250316,3.32887142,184.63,184.59,1.23174115]
[1760863250517,4.03887142,184.63,184.59,1.23174115]
[1760863250707,3.32887142,184.62,184.59,1.23174115]
[1760863250926,3.32887142,184.62,184.59,0.69]
[1760863251220,3.32887142,184.66,184.6,0.69]
[1760863251401,4.03887142,184.66,184.61,0.54168246]
[1760863251597,3.32887142,184.64,184.58,0.69]
[1760863251797,3.32887142,184.64,184.59,0.54174115]
[1760863251999,0.71,184.63,184.59,0.54174115]
[1760863252203,102.81,184.67,184.6,0.69]
[1760863252393,3.32887142,184.66,184.61,0.54168246]
[1760863252595,0.71,184.65,184.61,1.23168246]
[1760863253219,3.32887142,184.66,184.61,1.23168246]
[1760863253411,4.03887142,184.66,184.61,1.23168246]
[1760863253639,4.03887142,184.66,184.61,0.69]
[1760863253801,4.03887142,184.66,184.62,0.54165312]
[1760863254000,4.03887142,184.65,184.62,0.54165312]
[1760863254202,0.71,184.65,184.62,0.54165312]
[1760863254606,4.03887142,184.64,184.57,0.69]
[1760863254804,4.03887142,184.64,184.58,0.5417705]
[1760863255006,3.32887142,184.63,184.58,3.87064192]
[1760863255214,3.32887142,184.63,184.59,0.69]
[1760863255407,3.32887142,184.68,184.58,0.5417705]
[1760863255408,3.32887142,184.61,184.58,0.5417705]
[1760863255622,4.03887142,184.6,184.54,3.87075935]
[1760863255806,4.03887142,184.6,184.55,0.69]
[1760863256021,3.32887142,184.61,184.56,1.23182921]
[1760863256310,4.03887142,184.61,184.56,1.23182921]
[1760863256707,4.03887142,184.6,184.56,0.69]
[1760863257527,4.03887142,184.59,184.53,4.01887142]
[1760863257710,0.71,184.59,184.54,3.87075935]
[1760863257907,0.71,184.59,184.55,0.69]
[1760863258313,3.32887142,184.6,184.56,0.54182921]
[1760863258501,0.71,184.6,184.56,0.54182921]
[1760863258703,0.71,184.59,184.56,0.54182921]
[1760863258925,0.71,184.59,184.54,4.56075935]
[1760863259111,0.71,184.59,184.54,3.87075935]
[1760863259321,0.71,184.59,184.54,4.56075935]
[1760863259818,4.03887142,184.59,184.55,0.69]
[1760863260131,3.32887142,184.59,184.55,0.69]
[1760863260316,3.32887142,184.6,184.55,0.69]
[1760863260627,0.71,184.59,184.56,0.54182921]
[1760863260815,3.32887142,184.59,184.53,3.87078872]
[1760863261002,4.03887142,184.58,184.53,0.5419173]
[1760863261202,4.03887142,184.57,184.53,0.5419173]
[1760863261403,3.32887142,184.57,184.53,0.69]
[1760863261601,4.03887142,184.57,184.53,0.69]
[1760863261824,4.03887142,184.57,184.52,0.54194667]
[1760863262125,4.03887142,184.57,184.53,0.69]
[1760863262425,0.71,184.56,184.52,0.54194667]
[1760863262613,3.32887142,184.54,184.5,1.23200542]
[1760863262810,4.03887142,184.54,184.5,1.23200542]
[1760863263008,4.03887142,184.54,184.5,0.54200542]
[1760863263206,4.03887142,184.53,184.48,0.69]
[1760863263404,4.03887142,184.52,184.47,0.54209356]
[1760863263620,3.32887142,184.52,184.47,1.23209356]
[1760863263822,3.32887142,184.52,184.48,0.69]
[1760863264130,4.03887142,184.52,184.48,0.69]
[1760863265629,0.71,184.52,184.48,0.69]
[1760863266706,0.71,184.52,184.47,3.87096498]
[1760863266907,3.32887142,184.5,184.45,0.54215234]
[1760863267106,3.32887142,184.52,184.46,4.01887142]
[1760863267327,4.03887142,184.53,184.47,4.56096498]
[1760863267626,3.32887142,184.52,184.47,4.56096498]
[1760863267829,1.21,184.51,184.47,4.56096498]
[1760863268014,1.21,184.51,184.47,0.54209356]
[1760863268215,0.71,184.5,184.45,4.01887142]
[1760863268423,0.71,184.5,184.46,0.54212295]
[1760863268828,0.5,184.51,184.46,4.56099437]
[1760863269130,1.21,184.51,184.46,4.56099437]
[1760863269335,1.21,184.51,184.46,1.23212295]
[1760863269538,1.21,184.51,184.46,4.01887142]
[1760863269826,1.21,184.51,184.47,0.54209356]
[1760863270231,0.7,184.5,184.47,0.54209356]
[1760863270535,4.02887142,184.5,184.45,3.87102376]
[1760863270830,0.7,184.49,184.45,4.59102376]
[1760863271013,4.52887142,184.51,184.45,4.59102376]
[1760863271221,4.52887142,184.51,184.46,4.04887142]
[1760863271418,0.5,184.51,184.47,1.26209356]
[1760863271631,1.2,184.51,184.47,4.59096498]
[1760863271812,0.5,184.51,184.48,4.04887142]
[1760863272016,0.5,184.51,184.5,3.32887142]
[1760863272451,0.5,184.51,184.5,9.46892562]
[1760863272950,0.5,184.51,184.5,12.79779704]
[1760863273648,1e-08,184.51,184.5,23.67427225]
[1760863274027,0.66,184.62,184.51,10.87647521]
[1760863274228,3.98887142,184.64,184.58,3.32887142]
[1760863274547,0.66,184.64,184.6,3.32887142]
[1760863274749,0.66,184.64,184.6,4.01887142]
[1760863275239,3.32887142,184.66,184.6,4.01887142]
[1760863275240,0.66,184.66,184.61,0.54168246]
[1760863275441,0.66,184.65,184.61,3.87055388]
[1760863275836,3.32887142,184.67,184.62,3.32887142]
[1760863276036,0.66,184.66,184.62,4.01887142]
[1760863276446,3.32887142,184.67,184.62,4.56052454]
[1760863276637,3.32887142,184.69,184.64,3.32887142]
[1760863276831,0.66,184.68,184.65,3.87043654]
[1760863277034,15.31406665,184.77,184.65,3.87043654]
[1760863277234,0.66,184.7,184.66,3.32887142]
[1760863277433,3.32887142,184.71,184.66,4.01887142]
[1760863277634,0.66,184.71,184.67,3.87037789]
[1760863277838,3.32887142,184.73,184.67,4.56037789]
[1760863278035,3.98887142,184.73,184.68,3.32887142]
[1760863278235,3.98887142,184.75,184.69,4.56031925]
[1760863278437,3.98887142,184.74,184.69,9.28478129]
[1760863278630,0.66,184.73,184.69,3.87031925]
[1760863278829,0.66,184.72,184.69,9.28476035]
[1760863279025,0.66,184.72,184.69,5.95588893]
[1760863279225,3.32887142,184.74,184.61,0.54168246]
[1760863279226,3.32887142,184.7,184.61,0.54168246]
[1760863279454,3.32887142,184.65,184.6,3.32887142]
[1760863279650,3.98887142,184.64,184.6,5.41711809]
[1760863280635,3.32887142,184.65,184.6,6.10711809]
[1760863280852,3.32887142,184.61,184.56,5.41829215]
[1760863281054,3.32887142,184.62,184.57,0.69]
[1760863281248,3.98887142,184.64,184.58,4.56064192]
[1760863281558,3.32887142,184.62,184.58,0.69]
[1760863281954,3.32887142,184.63,184.58,0.69]
[1760863282252,3.32887142,184.63,184.57,3.87067127]
[1760863282253,23.54,184.65,184.57,3.87067127]
[1760863282445,3.32887142,184.63,184.6,5.41711809]
[1760863282639,0.66,184.65,184.59,6.10738166]
[1760863282847,3.32887142,184.64,184.6,0.5417118]
[1760863283152,3.98887142,184.64,184.6,0.5417118]
[1760863283332,3.32887142,184.66,184.61,0.69]
[1760863283530,3.32887142,184.67,184.62,0.69]
[1760863283731,0.66,184.69,184.63,4.5604952]
[1760863284046,3.98887142,184.69,184.63,4.5604952]
[1760863284251,0.66,184.69,184.65,3.32887142]
[1760863284450,3.32887142,184.7,184.66,5.956745]
[1760863284634,3.98887142,184.69,184.66,0.54153579]
[1760863284835,3.98887142,184.68,184.62,4.01887142]
[1760863285051,0.66,184.68,184.63,3.8704952]
[1760863285253,0.66,184.68,184.64,0.69]
[1760863285654,0.66,184.68,184.64,4.01887142]
[1760863285853,0.66,184.68,184.64,0.69]
[1760863286050,0.66,184.68,184.65,0.54156512]
[1760863287152,0.66,184.68,184.64,5.9574026]
[1760863287655,22.88,184.72,184.64,6.6474026]
[1760863287855,3.32887142,184.69,184.64,9.97627402]
[1760863288154,0.66,184.69,184.64,9.97627402]
[1760863290169,3.32887142,184.73,184.67,3.32887142]
[1760863290457,3.32887142,184.74,184.68,3.87034856]
[1760863290758,3.98887142,184.74,184.68,3.87034856]
[1760863291268,3.98887142,184.74,184.69,5.41447831]
[1760863291560,0.66,184.73,184.69,5.41447831]
[1760863292350,3.32887142,184.74,184.7,0.54141851]
[1760863292558,0.66,184.73,184.7,0.54141851]
[1760863293463,3.32887142,184.75,184.7,6.64539431]
[1760863293660,0.66,184.74,184.7,6.64539431]
[1760863293862,0.66,184.73,184.69,5.41444339]
[1760863294061,3.98887142,184.73,184.69,5.41444339]
[1760863294454,3.98887142,184.72,184.68,5.95622125]
[1760863294655,26.20887142,184.77,184.66,5.95669555]
[1760863294656,3.98887142,184.71,184.66,5.95669555]
[1760863294963,0.66,184.7,184.66,6.64669555]
[1760863295553,3.32887142,184.72,184.67,0.69]
[1760863295757,3.98887142,184.72,184.67,0.69]
[1760863296066,0.66,184.71,184.67,0.69]
[1760863296645,0.66,184.71,184.68,5.41477149]
[1760863296967,3.32887142,184.72,184.68,5.95624863]
[1760863297146,3.98887142,184.72,184.68,5.95624863]
[1760863297461,3.32887142,184.74,184.69,0.69]
[1760863297653,3.32887142,184.74,184.7,0.69]
[1760863297863,3.98887142,184.74,184.7,0.69]
[1760863298060,3.98887142,184.74,184.68,9.97512005]
[1760863298252,3.32887142,184.74,184.69,0.69]
[1760863298578,3.98887142,184.74,184.69,0.69]
[1760863298952,0.66,184.73,184.68,9.28512005]